fUSD/lending_fUSD_20260607
["ID","MTS","AMOUNT","RATE_DAILY","PERIOD"]
[424405847,1780842638000,-150.00000012,0.00014986,2]
[424405857,1780842638000,-500.0,0.00014988,2]
[424405840,1780842638000,-234.60406718,0.000149,2]
[424405859,1780842638000,-500.0,0.00014988,2]
[424405855,1780842638000,-500.0,0.00014988,2]
[424405852,1780842638000,-500.0,0.00014988,2]
[424405860,1780842638000,-500.0,0.00014988,2]
[424405861,1780842638000,-373.58352948,0.00014988,2]
[424405851,1780842638000,-160.88134904,0.00014986,2]
[424405853,1780842638000,-500.0,0.00014988,2]
[424405846,1780842638000,-405.5,0.00014985,2]
[424405849,1780842638000,-151.0,0.00014986,2]
[424405927,1780842639000,-500.0,0.00014999,2]
[424405921,1780842639000,-500.0,0.00014999,2]
[424405915,1780842639000,-500.0,0.00014999,2]
[424405924,1780842639000,-500.0,0.00014999,2]
[424405925,1780842639000,-500.0,0.00014999,2]
[424405923,1780842639000,-500.0,0.00014999,2]
[424405917,1780842639000,-500.0,0.00014999,2]
[424405919,1780842639000,-500.0,0.00014999,2]
[424405918,1780842639000,-500.0,0.00014999,2]
[424405920,1780842639000,-500.0,0.00014999,2]
[424405926,1780842639000,-500.0,0.00014999,2]
[424405922,1780842639000,-500.0,0.00014999,2]
[424405916,1780842639000,-500.0,0.00014999,2]
[424405928,1780842639000,-500.0,0.00014999,2]
[424405939,1780842639000,-500.0,0.00014999,2]
[424405934,1780842639000,-500.0,0.00014999,2]
[424405930,1780842639000,-500.0,0.00014999,2]
[424405937,1780842639000,-500.0,0.00014999,2]
[424405931,1780842639000,-500.0,0.00014999,2]
[424405935,1780842639000,-384.31005108,0.00014999,2]
[424405936,1780842639000,-500.0,0.00014999,2]
[424405932,1780842639000,-500.0,0.00014999,2]
[424405933,1780842639000,-500.0,0.00014999,2]
[424405948,1780842639000,-1893.89,0.00015,2]
[424405940,1780842639000,-500.0,0.00014999,2]
[424405942,1780842639000,-2648099.85308013,0.00015,2]
[424405944,1780842639000,-185.66834356,0.00015,2]
[424405914,1780842639000,-500.0,0.00014999,2]
[424405929,1780842639000,-500.0,0.00014999,2]
[424405909,1780842639000,-500.0,0.00014999,2]
[424405892,1780842639000,-500.0,0.00014999,2]
[424405911,1780842639000,-500.0,0.00014999,2]
[424405886,1780842639000,-703.17,0.00014999,2]
[424405887,1780842639000,-703.17,0.00014999,2]
[424405882,1780842639000,-703.17,0.00014999,2]
[424405885,1780842639000,-703.17,0.00014999,2]
[424405883,1780842639000,-703.17,0.00014999,2]
[424405884,1780842639000,-703.17,0.00014999,2]
[424405888,1780842639000,-703.17,0.00014999,2]
[424405889,1780842639000,-703.26332657,0.00014999,2]
[424405899,1780842639000,-1500.0,0.00014999,2]
[424405890,1780842639000,-500.0,0.00014999,2]
[424405945,1780842639000,-2000.0,0.00015,2]
[424405893,1780842639000,-500.0,0.00014999,2]
[424405896,1780842639000,-500.0,0.00014999,2]
[424405895,1780842639000,-500.0,0.00014999,2]
[424405891,1780842639000,-500.0,0.00014999,2]
[424405897,1780842639000,-500.0,0.00014999,2]
[424405898,1780842639000,-250.0,0.00014999,2]
[424405900,1780842639000,-500.0,0.00014999,2]
[424405894,1780842639000,-500.0,0.00014999,2]
[424405912,1780842639000,-500.0,0.00014999,2]
[424405902,1780842639000,-500.0,0.00014999,2]
[424405913,1780842639000,-500.0,0.00014999,2]
[424405901,1780842639000,-500.0,0.00014999,2]
[424405904,1780842639000,-500.0,0.00014999,2]
[424405903,1780842639000,-500.0,0.00014999,2]
[424405906,1780842639000,-500.0,0.00014999,2]
[424405905,1780842639000,-500.0,0.00014999,2]
[424405907,1780842639000,-500.0,0.00014999,2]
[424405908,1780842639000,-500.0,0.00014999,2]
[424405910,1780842639000,-500.0,0.00014999,2]
[424405950,1780842639000,-1226.33,0.00015,2]
[424405938,1780842639000,-500.0,0.00014999,2]
[424405946,1780842639000,-2000.0,0.00015,2]
[424405983,1780842639000,-217.994012,0.00015068,2]
[424405987,1780842639000,-512.10588256,0.00015154,2]
[424405986,1780842639000,-512.10588256,0.00015151,2]
[424405985,1780842639000,-638.04349831,0.00015138,2]
[424405988,1780842639000,-512.10588256,0.00015176,2]
[424405984,1780842639000,-1218.86032285,0.00015111,2]
[424405982,1780842639000,-217.994012,0.00015068,2]
[424405979,1780842639000,-176.0,0.00015068,2]
[424405991,1780842639000,-512.10588256,0.00015194,2]
[424405989,1780842639000,-1500.0,0.00015182,2]
[424405990,1780842639000,-1030.0,0.00015182,2]
[424406003,1780842639000,-296.17256178,0.00015279,2]
[424406004,1780842639000,-512.10588256,0.00015284,2]
[424405997,1780842639000,-553.22351664,0.00015225,2]
[424405978,1780842639000,-350.0,0.00015056,2]
[424405999,1780842639000,-433.0,0.00015241,2]
[424405998,1780842639000,-512.10588256,0.00015229,2]
[424405995,1780842639000,-512.10588256,0.00015202,2]
[424405992,1780842639000,-638.04349831,0.00015194,2]
[424406000,1780842639000,-512.10588256,0.00015244,2]
[424406002,1780842639000,-553.22351664,0.00015275,2]
[424405994,1780842639000,-512.10588256,0.00015198,2]
[424406001,1780842639000,-512.10588256,0.00015268,2]
[424406005,1780842639000,-512.10588256,0.00015287,2]
[424406006,1780842639000,-553.22351664,0.0001529,2]
[424406007,1780842639000,-299.99,0.0001531,2]
[424406009,1780842639000,-9999.99,0.0001531,2]
[424406008,1780842639000,-2677.43,0.0001531,2]
[424405941,1780842639000,-500.0,0.00014999,2]
[424406011,1780842639000,-24999.99,0.0001531,2]
[424405996,1780842639000,-553.22351664,0.00015211,2]
[424405980,1780842639000,-217.994012,0.00015068,2]
[424405993,1780842639000,-512.10588256,0.00015194,2]
[424405973,1780842639000,-193.0,0.00015,2]
[424405951,1780842639000,-1000.0,0.00015,2]
[424405981,1780842639000,-217.994012,0.00015068,2]
[424405949,1780842639000,-150.0,0.00015,2]
[424405947,1780842639000,-905.34,0.00015,2]
[424405952,1780842639000,-2000.0,0.00015,2]
[424405956,1780842639000,-2000.0,0.00015,2]
[424405957,1780842639000,-889.29,0.00015,2]
[424405955,1780842639000,-934.3,0.00015,2]
[424405954,1780842639000,-2000.0,0.00015,2]
[424405958,1780842639000,-1733.58,0.00015,2]
[424405962,1780842639000,-8099.62175,0.00015,2]
[424405963,1780842639000,-751417.00211797,0.00015,2]
[424405961,1780842639000,-2080.83702791,0.00015,2]
[424405959,1780842639000,-384.79,0.00015,2]
[424405953,1780842639000,-2000.0,0.00015,2]
[424405943,1780842639000,-351.79652105,0.00015,2]
[424405960,1780842639000,-14354210.7398382,0.00015,2]
[424405964,1780842639000,-151.0,0.00015,2]
[424405972,1780842639000,-193.0,0.00015,2]
[424405965,1780842639000,-151.0,0.00015,2]
[424405969,1780842639000,-1675.28,0.00015,2]
[424405967,1780842639000,-151.0,0.00015,2]
[424405968,1780842639000,-269.03816523,0.00015,2]
[424405977,1780842639000,-546.73151603,0.00015023,2]
[424405970,1780842639000,-193.0,0.00015,2]
[424405971,1780842639000,-193.0,0.00015,2]
[424405974,1780842639000,-193.0,0.00015,2]
[424405975,1780842639000,-193.0,0.00015,2]
[424405976,1780842639000,-193.0,0.00015,2]
[424405966,1780842639000,-151.0,0.00015,2]
[424406052,1780842640000,-215.26951446,0.000162,2]
[424406048,1780842640000,-943.8,0.00016116,2]
[424406053,1780842640000,-257.0,0.00016238,2]
[424406047,1780842640000,-999.99,0.00016116,2]
[424406049,1780842640000,-350.0,0.00016123,2]
[424406050,1780842640000,-10544.86067982,0.00016149,2]
[424406051,1780842640000,-350.0,0.00016197,2]
[424406054,1780842640000,-404.0,0.00016275,2]
[424406057,1780842640000,-500.0,0.00016295,2]
[424406058,1780842640000,-500.0,0.00016295,2]
[424406055,1780842640000,-1613.0535,0.00016278,2]
[424406059,1780842640000,-2000.0,0.00016295,2]
[424406046,1780842640000,-9999.99,0.00016116,2]
[424406056,1780842640000,-1107.63007,0.00016278,2]
[424406063,1780842640000,-508.067872,0.00016438,2]
[424406071,1780842640000,-195.0,0.000168,3]
[424406068,1780842640000,-708.0,0.00016536,2]
[424406072,1780842640000,-1672.7364795,0.00016826,2]
[424406062,1780842640000,-508.067872,0.00016438,2]
[424406065,1780842640000,-508.067872,0.00016438,2]
[424406073,1780842640000,-1148.61238259,0.00016826,2]
[424406070,1780842640000,-1631.9,0.00016767,2]
[424406066,1780842640000,-158.0,0.000165,3]
[424406067,1780842640000,-1675.28,0.000165,2]
[424406069,1780842640000,-168.33,0.00016712,2]
[424406075,1780842640000,-1174.49884359,0.00017135,2]
[424406076,1780842640000,-234.89976871,0.00017135,2]
[424406082,1780842640000,-163.0,0.000178,5]
[424406041,1780842640000,-9999.99,0.00016116,2]
[424406060,1780842640000,-508.067872,0.00016438,2]
[424406035,1780842640000,-215.26951446,0.00016,2]
[424406016,1780842640000,-512.10588256,0.00015358,2]
[424406038,1780842640000,-500.0,0.00016082,2]
[424406084,1780842640000,-915.2817431,0.00017808,2]
[424406012,1780842640000,-553.22351664,0.00015332,2]
[424406013,1780842640000,-553.22351664,0.00015334,2]
[424406015,1780842640000,-512.10588256,0.00015338,2]
[424406017,1780842640000,-512.10588256,0.00015361,2]
[424406019,1780842640000,-512.10588256,0.00015385,2]
[424406018,1780842640000,-553.22351664,0.00015364,2]
[424406020,1780842640000,-512.10588256,0.00015402,2]
[424406022,1780842640000,-512.10588256,0.00015426,2]
[424406021,1780842640000,-512.10588256,0.00015424,2]
[424406023,1780842640000,-512.10588256,0.00015434,2]
[424406027,1780842640000,-350.0,0.00015716,2]
[424406029,1780842640000,-1068.11,0.0001573,2]
[424406026,1780842640000,-1884.0,0.00015639,2]
[424406028,1780842640000,-1555.5,0.0001573,2]
[424406024,1780842640000,-350.0,0.00015443,2]
[424406031,1780842640000,-479.478431,0.00015811,10]
[424406030,1780842640000,-350.0,0.00015745,2]
[424406025,1780842640000,-828.3,0.00015464,2]
[424406033,1780842640000,-938.97,0.00015914,2]
[424406044,1780842640000,-499.99,0.00016116,2]
[424406043,1780842640000,-4999.99,0.00016116,2]
[424406032,1780842640000,-311.16377468,0.00015852,2]
[424406034,1780842640000,-300.0,0.00016,2]
[424406039,1780842640000,-215.26951446,0.000161,2]
[424406037,1780842640000,-645.0,0.00016,2]
[424406042,1780842640000,-150.99,0.00016116,2]
[424406040,1780842640000,-10968.6,0.00016116,2]
[424406036,1780842640000,-315.0,0.00016,2]
[424406045,1780842640000,-9999.99,0.00016116,2]
[424406083,1780842640000,-400.73349609,0.00017808,2]
[424406014,1780842640000,-512.10588256,0.00015334,2]
[424406074,1780842640000,-1884.0,0.0001706,2]
[424406116,1780842640000,-263.0,0.00018755,2]
[424406126,1780842640000,-1934.38338736,0.00019018,2]
[424406127,1780842640000,-1328.27659266,0.00019018,2]
[424406115,1780842640000,-1280.88388877,0.0001847,2]
[424406120,1780842640000,-300.0,0.00018809,2]
[424406117,1780842640000,-158.0,0.000188,9]
[424406119,1780842640000,-210.0,0.00018809,2]
[424406122,1780842640000,-240.0,0.00018816,2]
[424406118,1780842640000,-240.0,0.00018809,2]
[424406128,1780842640000,-500.0,0.00019098,2]
[424406121,1780842640000,-320.0,0.00018809,2]
[424406124,1780842640000,-159.0,0.000189,4]
[424406123,1780842640000,-158.0,0.000189,3]
[424406125,1780842640000,-2589.01300229,0.00019,2]
[424406109,1780842640000,-231.02597309,0.000184,2]
[424406130,1780842640000,-3000.0,0.00019178,2]
[424406140,1780842640000,-1213.0,0.0001967,5]
[424406131,1780842640000,-151.0,0.00019178,2]
[424406129,1780842640000,-2000.0,0.00019098,2]
[424406132,1780842640000,-151.0,0.00019178,2]
[424406133,1780842640000,-151.0,0.00019178,2]
[424406138,1780842640000,-2005.9555727,0.00019566,2]
[424406139,1780842640000,-1377.42282658,0.00019566,2]
[424406136,1780842640000,-150.0,0.00019185,2]
[424406137,1780842640000,-250.0,0.00019185,2]
[424406134,1780842640000,-151.0,0.00019178,2]
[424406135,1780842640000,-151.0,0.00019178,2]
[424406143,1780842640000,-150.0,0.00019749,2]
[424406142,1780842640000,-300.0,0.00019749,2]
[424406086,1780842640000,-500.0,0.00017808,2]
[424406141,1780842640000,-1154.37,0.000197,7]
[424406110,1780842640000,-231.02597309,0.000184,2]
[424406144,1780842640000,-150.0,0.00019755,2]
[424406108,1780842640000,-231.02597309,0.000184,2]
[424406077,1780842640000,-181.26,0.00017136,2]
[424406107,1780842640000,-1236.828,0.00018382,2]
[424406085,1780842640000,-500.0,0.00017808,2]
[424406087,1780842640000,-1798.80895522,0.00017922,2]
[424406080,1780842640000,-1191.11104074,0.00017374,2]
[424406081,1780842640000,-542.71,0.00017572,2]
[424406079,1780842640000,-1734.62772924,0.00017374,2]
[424406089,1780842640000,-166.72606525,0.00018,2]
[424406099,1780842640000,-300.0,0.00018108,2]
[424406094,1780842640000,-300.0,0.00018108,2]
[424406096,1780842640000,-300.0,0.00018108,2]
[424406090,1780842640000,-350.0,0.00018,2]
[424406093,1780842640000,-300.0,0.00018108,2]
[424406095,1780842640000,-300.0,0.00018108,2]
[424406092,1780842640000,-300.0,0.00018108,2]
[424406078,1780842640000,-239.7392155,0.00017181,10]
[424406098,1780842640000,-300.0,0.00018108,2]
[424406100,1780842640000,-300.0,0.00018108,2]
[424406111,1780842640000,-1675.28,0.000184,2]
[424406106,1780842640000,-1279.005,0.00018382,2]
[424406112,1780842640000,-1358.0,0.00018459,2]
[424406104,1780842640000,-989.5012943,0.00018342,2]
[424406114,1780842640000,-1865.36488656,0.0001847,2]
[424406105,1780842640000,-732.13746901,0.00018342,2]
[424406113,1780842640000,-3554.0,0.00018459,2]
[424406102,1780842640000,-887.0,0.00018176,5]
[424406097,1780842640000,-300.0,0.00018108,2]
[424406101,1780842640000,-245.0,0.00018108,2]
[424406088,1780842640000,-1235.18214925,0.00017922,2]
[424406091,1780842640000,-150.0,0.00018015,2]
[424406103,1780842640000,-257.72105416,0.00018342,2]
[424406190,1780842641000,-151.0,0.00020114,2]
[424406186,1780842641000,-2080.17592889,0.00020114,2]
[424406185,1780842641000,-209.40437684,0.00020114,2]
[424406189,1780842641000,-1428.38747117,0.00020114,2]
[424406179,1780842641000,-151.0,0.00020114,2]
[424406184,1780842641000,-151.0,0.00020114,2]
[424406180,1780842641000,-151.0,0.00020114,2]
[424406182,1780842641000,-578.20924308,0.00020114,2]
[424406181,1780842641000,-174.61919141,0.00020114,2]
[424406183,1780842641000,-151.0,0.00020114,2]
[424406176,1780842641000,-151.0,0.00020114,2]
[424406187,1780842641000,-151.0,0.00020114,2]
[424406188,1780842641000,-152.0,0.00020114,2]
[424406191,1780842641000,-209.40437684,0.00020114,2]
[424406200,1780842641000,-209.40437684,0.00020114,2]
[424406201,1780842641000,-151.0,0.00020114,2]
[424406204,1780842641000,-151.0,0.00020114,2]
[424406203,1780842641000,-152.0,0.00020114,2]
[424406195,1780842641000,-151.0,0.00020114,2]
[424406193,1780842641000,-152.0,0.00020114,2]
[424406194,1780842641000,-151.0,0.00020114,2]
[424406199,1780842641000,-500.0,0.00020114,2]
[424406197,1780842641000,-562.01621077,0.00020114,2]
[424406198,1780842641000,-200.0,0.00020114,2]
[424406196,1780842641000,-152.0,0.00020114,2]
[424406205,1780842641000,-160.0,0.00020114,2]
[424406170,1780842641000,-1000.0,0.00020114,2]
[424406207,1780842641000,-151.0,0.00020114,2]
[424406192,1780842641000,-151.0,0.00020114,2]
[424406173,1780842641000,-151.0,0.00020114,2]
[424406163,1780842641000,-625.0,0.0002,2]
[424406171,1780842641000,-209.40437684,0.00020114,2]
[424406206,1780842641000,-152.0,0.00020114,2]
[424406153,1780842641000,-604.0,0.0002,2]
[424406154,1780842641000,-1555.0,0.0002,2]
[424406145,1780842641000,-158.0,0.000198,4]
[424406151,1780842641000,-319.0,0.0002,2]
[424406149,1780842641000,-190.334213,0.0002,2]
[424406148,1780842641000,-1044.0,0.0002,2]
[424406146,1780842641000,-158.0,0.000198,5]
[424406152,1780842641000,-600.0,0.0002,2]
[424406147,1780842641000,-735.35925892,0.000199,2]
[424406150,1780842641000,-150.0,0.0002,2]
[424406155,1780842641000,-594.0,0.0002,2]
[424406157,1780842641000,-612.0,0.0002,2]
[424406177,1780842641000,-151.0,0.00020114,2]
[424406158,1780842641000,-780.0,0.0002,2]
[424406160,1780842641000,-670.0,0.0002,2]
[424406165,1780842641000,-308.0,0.0002,2]
[424406166,1780842641000,-400.0,0.0002,2]
[424406161,1780842641000,-806.0,0.0002,2]
[424406156,1780842641000,-536.0,0.0002,2]
[424406164,1780842641000,-825.0,0.0002,2]
[424406168,1780842641000,-1458.51,0.0002,2]
[424406178,1780842641000,-200.0,0.00020114,2]
[424406167,1780842641000,-2000.0,0.0002,7]
[424406169,1780842641000,-3000.0,0.00020114,2]
[424406174,1780842641000,-209.40437684,0.00020114,2]
[424406172,1780842641000,-151.0,0.00020114,2]
[424406175,1780842641000,-693.39197629,0.00020114,2]
[424406159,1780842641000,-709.0,0.0002,2]
[424406208,1780842641000,-151.0,0.00020114,2]
[424406162,1780842641000,-1939.0,0.0002,2]
[424406214,1780842641000,-151.0,0.00020114,2]
[424406250,1780842641000,-151.0,0.00020114,2]
[424406259,1780842641000,-745.65223615,0.00020224,2]
[424406267,1780842641000,-151.0,0.00020389,2]
[424406260,1780842641000,-151.0,0.00020224,2]
[424406261,1780842641000,-408.68701427,0.00020279,2]
[424406262,1780842641000,-151.0,0.00020279,2]
[424406269,1780842641000,-151.0,0.00020499,2]
[424406263,1780842641000,-1675.28,0.000203,2]
[424406257,1780842641000,-719.04747942,0.00020169,2]
[424406255,1780842641000,-29999.99,0.00020145,2]
[424406265,1780842641000,-245.0,0.00020314,2]
[424406264,1780842641000,-150.0,0.00020314,2]
[424406268,1780842641000,-151.0,0.00020444,2]
[424406258,1780842641000,-151.0,0.00020169,2]
[424406266,1780842641000,-151.0,0.00020334,2]
[424406271,1780842641000,-151.0,0.00020554,2]
[424406270,1780842641000,-300.0,0.00020502,2]
[424406281,1780842641000,-200.0,0.00020662,2]
[424406272,1780842641000,-151.0,0.00020609,2]
[424406274,1780842641000,-217.15233878,0.00020662,2]
[424406276,1780842641000,-181.08010149,0.00020662,2]
[424406278,1780842641000,-2157.14243826,0.00020662,2]
[424406273,1780842641000,-217.15233878,0.00020662,2]
[424406280,1780842641000,-151.0,0.00020662,2]
[424406277,1780842641000,-217.15233878,0.00020662,2]
[424406279,1780842641000,-1481.2378076,0.00020662,2]
[424406283,1780842641000,-217.15233878,0.00020662,2]
[424406282,1780842641000,-500.0,0.00020662,2]
[424406209,1780842641000,-152.0,0.00020114,2]
[424406254,1780842641000,-500.0,0.00020114,2]
[424406252,1780842641000,-500.0,0.00020114,2]
[424406275,1780842641000,-200.0,0.00020662,2]
[424406248,1780842641000,-151.0,0.00020114,2]
[424406244,1780842641000,-151.0,0.00020114,2]
[424406210,1780842641000,-151.0,0.00020114,2]
[424406212,1780842641000,-500.0,0.00020114,2]
[424406215,1780842641000,-152.0,0.00020114,2]
[424406213,1780842641000,-151.0,0.00020114,2]
[424406217,1780842641000,-151.0,0.00020114,2]
[424406216,1780842641000,-500.0,0.00020114,2]
[424406220,1780842641000,-500.0,0.00020114,2]
[424406230,1780842641000,-151.0,0.00020114,2]
[424406231,1780842641000,-500.0,0.00020114,2]
[424406232,1780842641000,-152.0,0.00020114,2]
[424406222,1780842641000,-151.0,0.00020114,2]
[424406219,1780842641000,-152.0,0.00020114,2]
[424406221,1780842641000,-151.0,0.00020114,2]
[424406218,1780842641000,-151.0,0.00020114,2]
[424406224,1780842641000,-500.0,0.00020114,2]
[424406223,1780842641000,-152.0,0.00020114,2]
[424406246,1780842641000,-500.0,0.00020114,2]
[424406234,1780842641000,-151.0,0.00020114,2]
[424406235,1780842641000,-500.0,0.00020114,2]
[424406238,1780842641000,-151.0,0.00020114,2]
[424406233,1780842641000,-151.0,0.00020114,2]
[424406240,1780842641000,-500.0,0.00020114,2]
[424406229,1780842641000,-151.0,0.00020114,2]
[424406227,1780842641000,-152.0,0.00020114,2]
[424406236,1780842641000,-151.0,0.00020114,2]
[424406225,1780842641000,-151.0,0.00020114,2]
[424406242,1780842641000,-151.0,0.00020114,2]
[424406228,1780842641000,-500.0,0.00020114,2]
[424406226,1780842641000,-151.0,0.00020114,2]
[424406312,1780842642000,-150.0,0.00021015,2]
[424406314,1780842642000,-150.66997503,0.00021048,2]
[424406310,1780842642000,-500.0,0.00021,2]
[424406318,1780842642000,-200.0,0.0002121,2]
[424406317,1780842642000,-225.18697532,0.0002121,2]
[424406313,1780842642000,-151.1563446,0.00021048,2]
[424406316,1780842642000,-225.18697532,0.0002121,2]
[424406319,1780842642000,-187.78006524,0.0002121,2]
[424406321,1780842642000,-2236.95670847,0.0002121,2]
[424406315,1780842642000,-1631.9,0.00021205,2]
[424406333,1780842642000,-200.0,0.00021254,2]
[424406323,1780842642000,-151.0,0.0002121,2]
[424406334,1780842642000,-200.0,0.00021254,2]
[424406332,1780842642000,-200.0,0.00021254,2]
[424406322,1780842642000,-1536.04360648,0.0002121,2]
[424406331,1780842642000,-200.0,0.00021254,2]
[424406330,1780842642000,-200.0,0.00021254,2]
[424406329,1780842642000,-200.0,0.00021254,2]
[424406324,1780842642000,-200.0,0.0002121,2]
[424406325,1780842642000,-500.0,0.0002121,2]
[424406311,1780842642000,-479.03258016,0.00021,3]
[424406320,1780842642000,-225.18697532,0.0002121,2]
[424406309,1780842642000,-500.0,0.00021,3]
[424406293,1780842642000,-230.0,0.00021,2]
[424406304,1780842642000,-806.0,0.00021,2]
[424406327,1780842642000,-151.0,0.0002121,2]
[424406290,1780842642000,-177.31,0.00021,2]
[424406284,1780842642000,-151.0,0.00020662,2]
[424406291,1780842642000,-158.0,0.00021,6]
[424406287,1780842642000,-350.0,0.0002076,3]
[424406289,1780842642000,-206.26472715,0.00021,2]
[424406285,1780842642000,-151.0,0.00020662,2]
[424406292,1780842642000,-190.0,0.00021,2]
[424406288,1780842642000,-7298.87,0.00020951,2]
[424406286,1780842642000,-151.0,0.00020664,2]
[424406294,1780842642000,-190.0,0.00021,2]
[424406296,1780842642000,-600.0,0.00021,2]
[424406307,1780842642000,-825.0,0.00021,2]
[424406306,1780842642000,-625.0,0.00021,2]
[424406308,1780842642000,-308.0,0.00021,2]
[424406299,1780842642000,-594.0,0.00021,2]
[424406303,1780842642000,-709.0,0.00021,2]
[424406301,1780842642000,-612.0,0.00021,2]
[424406298,1780842642000,-1555.0,0.00021,2]
[424406300,1780842642000,-536.0,0.00021,2]
[424406297,1780842642000,-604.0,0.00021,2]
[424406295,1780842642000,-319.0,0.00021,2]
[424406305,1780842642000,-1939.0,0.00021,2]
[424406302,1780842642000,-780.0,0.00021,2]
[424406326,1780842642000,-225.18697532,0.0002121,2]
[424406336,1780842642000,-200.0,0.00021254,2]
[424406335,1780842642000,-200.0,0.00021254,2]
[424406364,1780842642000,-151.0,0.00021758,2]
[424406367,1780842642000,-1675.28,0.000219,2]
[424406366,1780842642000,-159.0,0.000219,10]
[424406363,1780842642000,-151.0,0.00021758,2]
[424406368,1780842642000,-500.0,0.00021902,2]
[424406370,1780842642000,-151.0,0.00021918,2]
[424406369,1780842642000,-2000.0,0.00021902,2]
[424406365,1780842642000,-274.19519239,0.00021898,2]
[424406373,1780842642000,-200.0,0.00021918,2]
[424406372,1780842642000,-5000.0,0.00021918,2]
[424406371,1780842642000,-151.0,0.00021918,2]
[424406374,1780842642000,-337.37,0.00021918,2]
[424406383,1780842642000,-158.0,0.00022,7]
[424406379,1780842642000,-502.92334437,0.00021999,2]
[424406384,1780842642000,-158.0,0.00022,7]
[424406376,1780842642000,-150.0,0.00021918,2]
[424406378,1780842642000,-200.0,0.00021918,2]
[424406381,1780842642000,-500.0,0.00022,3]
[424406382,1780842642000,-500.0,0.00022,3]
[424406380,1780842642000,-9545.0,0.00022,10]
[424406385,1780842642000,-319.0,0.00022,2]
[424406328,1780842642000,-151.0,0.0002121,2]
[424406375,1780842642000,-166.0,0.00021918,2]
[424406362,1780842642000,-233.5188934,0.00021758,2]
[424406377,1780842642000,-200.0,0.00021918,2]
[424406360,1780842642000,-200.0,0.00021758,2]
[424406337,1780842642000,-200.0,0.00021254,2]
[424406361,1780842642000,-500.0,0.00021758,2]
[424406338,1780842642000,-163.0,0.00021254,2]
[424406340,1780842642000,-1227.0,0.00021382,2]
[424406341,1780842642000,-1358.0,0.00021459,2]
[424406339,1780842642000,-1274.0,0.00021382,2]
[424406342,1780842642000,-3554.0,0.00021459,2]
[424406347,1780842642000,-508.067872,0.00021679,2]
[424406343,1780842642000,-156.587,0.00021483,2]
[424406346,1780842642000,-152.0,0.00021647,3]
[424406345,1780842642000,-160.0,0.00021483,2]
[424406348,1780842642000,-508.067872,0.00021679,2]
[424406344,1780842642000,-217.15233878,0.00021483,2]
[424406358,1780842642000,-1592.87721992,0.00021758,2]
[424406353,1780842642000,-233.5188934,0.00021758,2]
[424406351,1780842642000,-1458.51,0.00021689,2]
[424406352,1780842642000,-233.5188934,0.00021758,2]
[424406355,1780842642000,-194.72792766,0.00021758,2]
[424406350,1780842642000,-508.067872,0.00021679,2]
[424406354,1780842642000,-200.0,0.00021758,2]
[424406356,1780842642000,-233.5188934,0.00021758,2]
[424406357,1780842642000,-2319.72410669,0.00021758,2]
[424406359,1780842642000,-151.0,0.00021758,2]